Workbook

Sheet Информация ОМС,ИОГВ квартал(1)
A1: ИНФОРМАЦИЯ
A2: о работе с обращениями и запросами граждан и организаций
A3: с 01.07.2018 по 30.09.2018
A5: ИОГВ / ОМС | C5: Департамент государственного регулирования цен и тарифов Костромской области
A8: 1. ОБЩАЯ ХАРАКТЕРИСТИКА ОБРАЩЕНИЙ И ЗАПРОСОВ
A10: 1.1 Количество обращений и запросов, поступивших за период
A13: в письменной форме (без префикса) | C13: в форме электронного документа (префиксы ЭП+ З + АП) | E13: в устной форме (префиксы ЛП+ ПП+УС) | G13: Всего
A14: 13 | C14: 10 | E14: 0 | G14: =SUM(A14+C14+E14) -> 23
A16: 1.2 Характеристика обращений по типу вида обращений
A18: Жалоба | C18: Заявление | E18: Предложение | G18: Не обращение
A19: 1 | C19: 22 | E19: 0 | G19: 0
A20: Контрольная информация должна быть равна 0 | G20: =IF(A19+C19+E19+G19=G14,0,FALSE) -> 0
A22: 1.3 Активность населения по обращениям и запросам
A23: Численность населения | G23: 643324
A24: Коэффициент активности | G24: =SUM(G14/G23*10000) -> 0.3575181402
A26: 2. ХАРАКТЕРИСТИКА ВОПРОСОВ В ОБРАЩЕНИЯХ ПО ТЕМАТИЧЕСКОМУ КЛАССИФИКАТОРУ
A28: Раздел классификатора | D28: Количество | E28: Доля | G28: Активность
A29: Государство, общество, политика | D29: 0 | E29: =D29/D34*100 -> 0 | G29: =D29/G23*10000 -> 0
A30: Жилищно-коммунальная сфера | D30: 21 | E30: =D30/D34*100 -> 87.5 | G30: =D30/G23*10000 -> 0.3264296062
A31: Оборона, безопасность, законность | D31: 0 | E31: =D31/D34*100 -> 0 | G31: =D31/G23*10000 -> 0
A32: Социальная сфера | D32: 1 | E32: =D32/D34*100 -> 4.166666667 | G32: =D32/G23*10000 -> 0.01554426696
A33: Экономика | D33: 2 | E33: =D33/D34*100 -> 8.333333333 | G33: =D33/G23*10000 -> 0.03108853393
A34: ВСЕГО | D34: =SUM(D29:D33) -> 24 | E34: =SUM(E29:F33) -> 100 | G34: =SUM(G29:H33) -> 0.3730624071
A35: Контрольная информация | D35: =IF(D34>=G14,0,FALSE) -> 0
A37: 3. ХАРАКТЕРИСТИКА РЕЗУЛЬТАТОВ РАССМОТРЕНИЯ ОБРАЩЕНИЙ
A39: Принято обращений к рассмотрению в текущем периоде | G39: =SUM(B42:E42) -> 21
A40: Рассмотрено обращений | B40: по рассмотренным обращениям: | F40: Направлено по компетенции | G40: Находятся на рассмотрении
B41: меры приняты | C41: поддержано | D41: разъяснено | E41: не поддержано
A42: =SUM(B42:E42) -> 21 | B42: 0 | C42: 0 | D42: 21 | E42: 0 | F42: 1 | G42: 1
A43: Доля | B43: =B42/A42*100 -> 0 | C43: =C42/A42*100 -> 0 | D43: =D42/A42*100 -> 100 | E43: =E42/A42*100 -> 0 | F43: =F42/A42*100 -> 4.761904762
A46: 4. ОРГАНИЗАЦИЯ ЛИЧНЫХ ПРИЕМОВ
A48: Проведено приемов граждан | B48: в том числе: | F48: Принято граждан
B49: Руководителями ИОГВ (ОМС) | D49: Уполномоченными лицами ИОГВ (ОМС)
A50: 0 | B50: 0 | D50: 0 | F50: 0
A51: Контрольная информация должна быть равна 0 | F51: =IF(F50>=A50,0,FALSE) -> 0
A55: 5. ИНФОРМАЦИЯ
A56: об уполномоченном лице по работе с обращениями граждан и организаций
A57: исполнительного органа государственной власти, органа местного самоуправления муниципального образования Костромской области
A59: Департамент государственного регулирования цен и тарифов Костромской области
A60: Наименование ИОГВ / ОМС
A62: начальник отдела финансов, проверок и контроля
A63: Должность уполномоченного лица
A65: Покровская Светлана Александровна
A66: ФИО уполномоченного лица
A68: 156005, г. Кострома, ул. Свердлова, 82-а
A69: Почтовый адрес ИОГВ/ ОМС с указанием индекса
A71: proverka@tariff44.ru
A72: Электронный адрес ИОГВ/ ОМС или уполномоченного лица
A74: Номер телефона с указанием кода | E74: 4942 | G74: 311633
E75: код | G75: телефон
A77: Номер факса с указанием кода | E77: 4942 | G77: 373401
E78: код | G78: факс
